bitfinex-derivatives/quotes_BNBF0:USTF0_20241225
["timestamp","ask_amount","ask_price","bid_price","bid_amount"]
[1735166254660,0.9163245,701.07,700.18,0.28564083]
[1735166255055,0.9163245,701.06,700.18,0.28564083]
[1735166255260,0.9163245,701.05,700.18,0.28564083]
[1735166255653,0.9163245,701.04,700.18,0.28564083]
[1735166256059,0.9163245,701.03,700.18,0.28564083]
[1735166256255,0.9163245,701.02,700.18,0.28564083]
[1735166256763,0.9163245,701.01,700.18,0.28564083]
[1735166256957,0.9163245,701.0,700.18,0.28564083]
[1735166257361,0.9163245,700.99,700.18,0.28564083]
[1735166257763,0.9163245,700.98,700.18,0.28564083]
[1735166258158,0.9163245,700.97,700.18,0.28564083]
[1735166258362,0.9163245,700.96,700.18,0.28564083]
[1735166258959,0.9163245,700.95,700.18,0.28564083]
[1735166259366,0.9163245,700.94,700.18,0.28564083]
[1735166259866,0.9163245,700.93,700.18,0.28564083]
[1735166260361,0.9163245,700.92,700.18,0.28564083]
[1735166260567,0.9163245,700.91,700.18,0.28564083]
[1735166261068,0.9163245,700.9,700.18,0.28564083]
[1735166261260,0.28516432,701.35,700.18,0.28564083]
[1735166261566,0.91637473,701.34,700.18,0.28564083]
[1735166262066,0.91637473,701.33,700.18,0.28564083]
[1735166262266,0.91637473,701.32,700.18,0.28564083]
[1735166262469,0.91637473,701.31,700.18,0.28564083]
[1735166262663,0.91637473,701.3,700.18,0.28564083]
[1735166263062,0.91637473,701.29,700.18,0.28564083]
[1735166263468,0.91637473,701.28,700.18,0.28564083]
[1735166263863,0.91637473,701.27,700.18,0.28564083]
[1735166264063,0.91637473,701.26,700.18,0.28564083]
[1735166264569,0.91637473,701.25,700.18,0.28564083]
[1735166264764,0.91637473,701.24,700.18,0.28564083]
[1735166265067,0.91637473,701.23,700.18,0.28564083]
[1735166265565,0.91637473,701.22,700.18,0.28564083]
[1735166265972,0.91637473,701.21,700.18,0.28564083]
[1735166266168,0.28516432,701.35,700.18,0.28564083]
[1735166266169,0.91637473,701.2,700.18,0.28564083]
[1735166266369,0.91637473,701.19,700.18,0.28564083]
[1735166266568,0.91637473,701.18,700.18,0.28564083]
[1735166266869,0.91637473,701.17,700.18,0.28564083]
[1735166267268,0.91637473,701.16,700.18,0.28564083]
[1735166267668,0.91637473,701.15,700.18,0.28564083]
[1735166268065,0.91637473,701.14,700.18,0.28564083]
[1735166268471,0.91637473,701.13,700.18,0.28564083]
[1735166268973,0.91637473,701.12,700.18,0.28564083]
[1735166269271,0.91637473,701.11,700.18,0.28564083]
[1735166269574,0.91637473,701.1,700.18,0.28564083]
[1735166269772,0.28516432,701.35,700.18,0.28564083]
[1735166269773,0.91637473,701.09,700.18,0.28564083]
[1735166270172,0.91637473,701.08,700.18,0.28564083]
[1735166270671,0.91637473,701.07,700.18,0.28564083]
[1735166271073,0.91637473,701.06,700.18,0.28564083]
[1735166271570,0.91637473,701.05,700.18,0.28564083]
[1735166271769,0.91637473,701.04,700.18,0.28564083]
[1735166272375,0.91637473,701.03,700.18,0.28564083]
[1735166272671,0.91637473,701.02,700.18,0.28564083]
[1735166273074,0.91637473,701.01,700.18,0.28564083]
[1735166273275,0.91637473,701.0,700.18,0.28564083]
[1735166273674,0.28516432,701.35,700.18,0.28564083]
[1735166273675,0.91637473,700.99,700.18,0.28564083]
[1735166273969,0.91637473,700.98,700.18,0.28564083]
[1735166274374,0.91637473,700.97,700.18,0.28564083]
[1735166274577,0.91637473,700.96,700.18,0.28564083]
[1735166274876,0.91637473,700.95,700.18,0.28564083]
[1735166275270,0.91637473,700.94,700.18,0.28564083]
[1735166275471,0.91637473,700.93,700.18,0.28564083]
[1735166275873,0.91637473,700.92,700.18,0.28564083]
[1735166276075,0.91637473,700.91,700.18,0.28564083]
[1735166276472,0.91637473,700.9,700.18,0.28564083]
[1735166276780,0.91637473,700.89,700.18,0.28564083]
[1735166277278,0.91637473,700.88,700.18,0.28564083]
[1735166277479,0.91637473,700.87,700.18,0.28564083]
[1735166277978,0.91637473,700.86,700.18,0.28564083]
[1735166278177,0.91637473,700.85,700.18,0.28564083]
[1735166278678,0.91637473,700.84,700.18,0.28564083]
[1735166278877,0.91637473,700.83,700.18,0.28564083]
[1735166279179,0.91637473,700.82,700.18,0.28564083]
[1735166279377,0.91637473,700.81,700.18,0.28564083]
[1735166279878,0.28516432,701.35,700.18,0.28564083]
[1735166280579,0.9181447,701.34,700.18,0.28564083]
[1735166280781,0.9181447,701.33,700.18,0.28564083]
[1735166281274,0.9181447,701.32,700.18,0.28564083]
[1735166281675,0.9181447,701.31,700.18,0.28564083]
[1735166281981,0.9181447,701.3,700.18,0.28564083]
[1735166282178,0.9181447,701.29,700.18,0.28564083]
[1735166282572,0.9181447,701.28,700.18,0.28564083]
[1735166282980,0.9181447,701.27,700.18,0.28564083]
[1735166283180,0.9181447,701.26,700.18,0.28564083]
[1735166283578,0.9181447,701.25,700.18,0.28564083]
[1735166283876,0.9181447,701.24,700.18,0.28564083]
[1735166284279,0.9181447,701.23,700.18,0.28564083]
[1735166284481,0.9181447,701.22,700.18,0.28564083]
[1735166284775,0.9181447,701.21,700.18,0.28564083]
[1735166284976,0.9181447,701.2,700.18,0.28564083]
[1735166285181,0.9181447,701.19,700.18,0.28564083]
[1735166285577,0.28516432,701.35,700.18,0.28564083]
[1735166285578,0.9181447,701.18,700.18,0.28564083]
[1735166285976,0.9181447,701.17,700.18,0.28564083]
[1735166286382,0.9181447,701.16,700.18,0.28564083]
[1735166286783,0.9181447,701.15,700.18,0.28564083]
[1735166286985,0.9181447,701.14,700.18,0.28564083]
[1735166287284,0.9181447,701.13,700.18,0.28564083]
[1735166287781,0.9181447,701.12,700.18,0.28564083]
[1735166288383,0.9181447,701.11,700.18,0.28564083]
[1735166288883,0.9181447,701.1,700.18,0.28564083]
[1735166289277,0.9181447,701.09,700.18,0.28564083]
[1735166289679,0.9181447,701.08,700.18,0.28564083]
[1735166289882,0.9181447,701.07,700.18,0.28564083]
[1735166290084,0.9181447,701.06,699.66,1.28094218]
[1735166290585,0.9181447,701.05,699.66,1.28094218]
[1735166290786,0.9181447,701.04,699.66,1.28094218]
[1735166290986,0.9181447,701.04,699.67,0.28584904]
[1735166291185,0.9181447,701.03,699.67,0.28584904]
[1735166291381,0.9181447,701.02,699.67,0.28584904]
[1735166291886,0.9181447,701.01,699.67,0.28584904]
[1735166292089,0.28516432,701.35,699.67,0.28584904]
[1735166292090,0.9181447,701.0,699.67,0.28584904]
[1735166292683,0.9181447,700.99,699.67,0.28584904]
[1735166293081,0.9181447,700.98,699.67,0.28584904]
[1735166293483,0.9181447,700.97,699.67,0.28584904]
[1735166293681,0.28516432,701.35,699.67,0.28584904]
[1735166293682,0.9181447,700.96,699.67,0.28584904]
[1735166294087,0.9181447,700.95,699.67,0.28584904]
[1735166294586,0.9181447,700.94,699.67,0.28584904]
[1735166295086,0.9181447,700.93,699.67,0.28584904]
[1735166295484,0.9181447,700.92,699.67,0.28584904]
[1735166296089,0.9181447,700.91,699.67,0.28584904]
[1735166296286,0.9181447,700.9,699.67,0.28584904]
[1735166296787,0.9181447,700.89,699.67,0.28584904]
[1735166297185,0.9181447,700.88,699.67,0.28584904]
[1735166297385,0.9181447,700.87,699.67,0.28584904]
[1735166298088,0.9181447,700.86,699.67,0.28584904]
[1735166298490,0.9181447,700.85,699.67,0.28584904]
[1735166298992,0.9181447,700.84,699.67,0.28584904]
[1735166299290,0.9181447,700.83,699.67,0.28584904]
[1735166299691,0.9181447,700.82,699.67,0.28584904]
[1735166299890,0.9181447,700.81,699.67,0.28584904]
[1735166300289,0.9181447,700.8,699.67,0.28584904]
[1735166300688,0.9181447,700.79,699.67,0.28584904]
[1735166301085,0.9181447,700.78,699.67,0.28584904]
[1735166301492,0.9181447,700.77,699.67,0.28584904]
[1735166301693,0.9181447,700.76,699.67,0.28584904]
[1735166301992,0.9181447,700.75,699.67,0.28584904]
[1735166302389,0.28516432,701.35,699.67,0.28584904]
[1735166302589,0.91594986,701.34,699.67,0.28584904]
[1735166302990,1.20112231,701.33,699.67,0.28584904]
[1735166303291,0.28517652,701.32,699.67,0.28584904]
[1735166303694,0.91594986,701.31,699.67,0.28584904]
[1735166303885,0.28518465,701.3,699.67,0.28584904]
[1735166304291,0.91594986,701.29,699.67,0.28584904]
[1735166304492,1.20114265,701.28,699.67,0.28584904]
[1735166304685,0.28519685,701.27,699.67,0.28584904]
[1735166304886,1.20114671,701.27,699.67,0.28584904]
[1735166305088,0.91594986,701.26,699.67,0.28584904]
[1735166305284,0.28520499,701.25,699.67,0.28584904]
[1735166305489,1.20115485,701.25,699.67,0.28584904]
[1735166305691,0.91594986,701.24,699.67,0.28584904]
[1735166305993,1.20116298,701.23,699.67,0.28584904]
[1735166306191,1.20116705,701.22,699.67,0.28584904]
[1735166306389,0.91594986,701.21,699.67,0.28584904]
[1735166306893,1.20117518,701.2,699.67,0.28584904]
[1735166307094,0.28522939,701.19,699.67,0.28584904]
[1735166307394,1.20117925,701.19,699.67,0.28584904]
[1735166307692,0.91594986,701.18,699.67,0.28584904]
[1735166308091,0.91594986,701.17,699.67,0.28584904]
[1735166308489,0.91594986,701.16,699.67,0.28584904]
[1735166308688,0.91594986,701.15,699.67,0.28584904]
[1735166309088,0.91594986,701.14,699.67,0.28584904]
[1735166309494,0.91594986,701.13,699.67,0.28584904]
[1735166309994,0.91594986,701.12,699.67,0.28584904]
[1735166310389,0.91581707,701.11,699.67,0.28584904]
[1735166310895,0.91581707,701.1,699.67,0.28584904]
[1735166311295,0.91581707,701.09,699.67,0.28584904]
[1735166311697,0.91581707,701.08,699.67,0.28584904]
[1735166312199,0.91581707,701.07,699.67,0.28584904]
[1735166312594,0.91581707,701.06,699.67,0.28584904]
[1735166312796,0.91581707,701.05,699.67,0.28584904]
[1735166313196,0.91581707,701.04,699.67,0.28584904]
[1735166313599,0.28522939,701.19,699.67,0.28584904]
[1735166313600,0.91581707,701.03,699.67,0.28584904]
[1735166314004,0.91581707,701.02,699.67,0.28584904]
[1735166314197,0.91581707,701.01,699.67,0.28584904]
[1735166314394,0.91581707,701.0,699.67,0.28584904]
[1735166314797,0.91581707,700.99,699.67,0.28584904]
[1735166315200,0.91581707,700.98,699.67,0.28584904]
[1735166315499,0.91581707,700.97,699.67,0.28584904]
[1735166316000,0.91581707,700.96,699.67,0.28584904]
[1735166316500,0.91581707,700.95,699.67,0.28584904]
[1735166316697,0.91581707,700.94,699.67,0.28584904]
[1735166317097,0.91581707,700.93,699.67,0.28584904]
[1735166317593,0.91581707,700.92,699.67,0.28584904]
[1735166317899,0.91581707,700.91,699.67,0.28584904]
[1735166318100,0.91581707,700.9,699.67,0.28584904]
[1735166318495,0.91581707,700.89,699.67,0.28584904]
[1735166318897,0.91581707,700.88,699.67,0.28584904]
[1735166319292,0.91581707,700.87,699.67,0.28584904]
[1735166319699,0.91581707,700.86,699.67,0.28584904]
[1735166320101,0.91581707,700.85,699.67,0.28584904]
[1735166320597,0.91581707,700.84,699.67,0.28584904]
[1735166321099,0.91581707,700.83,699.67,0.28584904]
[1735166321294,0.28522939,701.19,699.67,0.28584904]
[1735166321700,0.91573315,701.18,699.67,0.28584904]
[1735166322100,0.91573315,701.17,699.67,0.28584904]
[1735166322501,0.91573315,701.16,699.67,0.28584904]
[1735166322902,0.91573315,701.15,699.67,0.28584904]
[1735166323303,0.91573315,701.14,699.67,0.28584904]
[1735166323503,0.91573315,701.13,699.67,0.28584904]
[1735166323703,0.91573315,701.12,699.67,0.28584904]
[1735166324099,0.91573315,701.11,699.67,0.28584904]
[1735166324301,0.91573315,701.1,699.67,0.28584904]
[1735166324702,0.91573315,701.09,699.67,0.28584904]
[1735166324897,0.91573315,701.08,699.67,0.28584904]
[1735166325098,0.91573315,701.07,699.67,0.28584904]
[1735166325502,0.91573315,701.06,699.67,0.28584904]
[1735166325804,0.91573315,701.05,699.67,0.28584904]
[1735166326203,0.91573315,701.04,699.67,0.28584904]
[1735166326403,0.91573315,701.03,699.67,0.28584904]
[1735166326600,0.91573315,701.02,699.67,0.28584904]
[1735166327005,0.91573315,701.01,699.67,0.28584904]
[1735166327399,0.28522939,701.19,699.67,0.28584904]
[1735166327400,0.91573315,701.0,699.67,0.28584904]
[1735166327600,0.91573315,700.99,699.67,0.28584904]
[1735166328000,0.91573315,700.98,699.67,0.28584904]
[1735166328404,0.91573315,700.97,699.67,0.28584904]
[1735166328909,0.91573315,700.96,699.67,0.28584904]
[1735166329310,0.91573315,700.95,699.67,0.28584904]
[1735166329705,0.91573315,700.94,699.67,0.28584904]
[1735166330008,0.91573315,700.93,699.67,0.28584904]
[1735166330208,0.91573315,700.92,699.67,0.28584904]
[1735166330505,0.91573315,700.91,699.67,0.28584904]
[1735166330705,0.91573315,700.9,699.67,0.28584904]
[1735166331010,0.91573315,700.89,699.67,0.28584904]
[1735166331212,0.91573315,700.88,699.67,0.28584904]
[1735166331411,0.91573315,700.87,699.67,0.28584904]
[1735166331913,0.91573315,700.86,699.86,1.28094218]
[1735166332112,0.28522939,701.19,699.87,0.28576735]
[1735166332510,0.91606733,701.18,699.87,0.28576735]
[1735166332712,0.91606733,701.17,699.87,0.28576735]
[1735166333109,0.91606733,701.16,699.87,0.28576735]
[1735166333315,0.91606733,701.15,699.87,0.28576735]
[1735166333509,0.91606733,701.14,699.87,0.28576735]
[1735166333710,0.91606733,701.13,699.87,0.28576735]
[1735166334112,0.91606733,701.12,699.87,0.28576735]
[1735166334308,0.91606733,701.11,699.87,0.28576735]
[1735166334512,0.91606733,701.1,699.87,0.28576735]
[1735166334812,0.91606733,701.09,699.87,0.28576735]
[1735166335209,0.91606733,701.08,699.87,0.28576735]
[1735166335811,0.91606733,701.07,699.87,0.28576735]
[1735166336117,0.91606733,701.06,699.87,0.28576735]
[1735166336314,0.91606733,701.05,699.87,0.28576735]
[1735166336712,0.91606733,701.04,699.87,0.28576735]
[1735166336909,0.91606733,701.03,699.87,0.28576735]
[1735166337313,0.91606733,701.02,699.87,0.28576735]
[1735166337614,0.91606733,701.01,699.87,0.28576735]
[1735166337813,0.91606733,701.0,699.87,0.28576735]
[1735166338216,0.91606733,700.99,699.87,0.28576735]
[1735166338615,0.91606733,700.98,699.87,0.28576735]
[1735166338819,0.91606733,700.97,699.87,0.28576735]
[1735166339219,0.91606733,700.96,699.87,0.28576735]
[1735166339520,0.91606733,700.95,699.87,0.28576735]
[1735166339916,0.91606733,700.94,699.87,0.28576735]
[1735166340119,0.91606733,700.93,699.87,0.28576735]
[1735166340613,0.91606733,700.92,699.87,0.28576735]
[1735166341013,0.91606733,700.91,699.87,0.28576735]
[1735166341216,0.91606733,700.9,699.87,0.28576735]
[1735166341618,0.91606733,700.89,699.87,0.28576735]
[1735166341818,0.91606733,700.88,699.87,0.28576735]
[1735166342221,0.91606733,700.87,699.87,0.28576735]
[1735166342424,0.91606733,700.86,699.87,0.28576735]
[1735166342623,0.91606733,700.85,699.87,0.28576735]
[1735166342817,0.91606733,700.84,699.87,0.28576735]
[1735166343217,0.91606733,700.83,699.87,0.28576735]
[1735166343619,0.91606733,700.82,699.87,0.28576735]
[1735166344023,0.91606733,700.81,699.87,0.28576735]
[1735166344224,0.91606733,700.8,699.87,0.28576735]
[1735166344427,0.91606733,700.79,699.87,0.28576735]
[1735166344925,0.91606733,700.78,699.87,0.28576735]
[1735166345126,0.91606733,700.77,699.87,0.28576735]
[1735166345527,0.28522939,701.19,699.87,0.28576735]
[1735166345827,0.91665038,701.18,699.87,0.28576735]
[1735166346322,0.91665038,701.17,699.87,0.28576735]
[1735166346827,0.91665038,701.16,699.87,0.28576735]
[1735166347227,0.91665038,701.15,699.87,0.28576735]
[1735166347529,0.91665038,701.14,699.87,0.28576735]
[1735166347929,0.91665038,701.13,699.87,0.28576735]
[1735166348128,0.91665038,701.12,699.87,0.28576735]
[1735166348525,0.91665038,701.11,699.87,0.28576735]
[1735166348729,0.91665038,701.1,699.87,0.28576735]
[1735166349125,0.91665038,701.09,699.87,0.28576735]
[1735166349527,0.91665038,701.08,699.87,0.28576735]
[1735166349829,0.91665038,701.07,699.87,0.28576735]
[1735166350229,0.91665038,701.06,699.87,0.28576735]
[1735166350631,0.91665038,701.05,699.87,0.28576735]
[1735166351031,0.91665038,701.04,699.87,0.28576735]
[1735166351331,0.91665038,701.03,699.87,0.28576735]
[1735166351732,0.91665038,701.02,699.87,0.28576735]
[1735166351931,0.91665038,701.01,699.87,0.28576735]
[1735166352132,0.91665038,701.0,699.87,0.28576735]
[1735166352632,0.91665038,700.99,699.87,0.28576735]
[1735166353129,0.91665038,700.98,699.87,0.28576735]
[1735166353532,0.91665038,700.97,699.87,0.28576735]
[1735166353833,0.91665038,700.96,699.87,0.28576735]
[1735166354226,0.91665038,700.95,699.87,0.28576735]
[1735166354430,0.91665038,700.94,699.87,0.28576735]
[1735166354630,0.91665038,700.93,699.87,0.28576735]
[1735166355031,0.91665038,700.92,699.87,0.28576735]
[1735166355430,0.91665038,700.91,699.87,0.28576735]
[1735166355633,0.91665038,700.9,699.87,0.28576735]
[1735166356031,0.91665038,700.89,699.87,0.28576735]
[1735166356432,0.91665038,700.88,699.87,0.28576735]
[1735166356733,0.91665038,700.87,699.87,0.28576735]
[1735166357134,0.91665038,700.86,699.87,0.28576735]
[1735166357330,0.91665038,700.85,699.87,0.28576735]
[1735166357633,0.91665038,700.84,699.87,0.28576735]
[1735166357933,0.91665038,700.83,699.87,0.28576735]
[1735166358330,0.91665038,700.82,699.87,0.28576735]
[1735166358632,0.91665038,700.81,699.87,0.28576735]
[1735166359135,0.91665038,700.8,699.87,0.28576735]
[1735166359531,0.28522939,701.19,699.87,0.28576735]
[1735166359933,0.91693163,701.18,699.87,0.28576735]
[1735166360234,0.91693163,701.17,699.87,0.28576735]
[1735166360533,0.91693163,701.16,699.87,0.28576735]
[1735166361034,0.91693163,701.15,699.87,0.28576735]
[1735166361534,0.91693163,701.14,699.87,0.28576735]
[1735166361932,0.91693163,701.13,699.87,0.28576735]
[1735166362130,0.91693163,701.12,699.87,0.28576735]
[1735166362531,0.91693163,701.11,699.87,0.28576735]
[1735166362733,0.91693163,701.1,699.87,0.28576735]
[1735166362934,0.91693163,701.09,699.87,0.28576735]
[1735166363435,0.91693163,701.08,699.87,0.28576735]
[1735166363838,0.91693163,701.07,699.87,0.28576735]
[1735166364040,0.91693163,701.06,699.87,0.28576735]
[1735166364336,0.91693163,701.05,699.87,0.28576735]
[1735166364638,0.91693163,701.05,699.91,1.28094218]
[1735166364832,0.91693163,701.04,699.92,0.28574694]
[1735166365236,0.91693163,701.03,699.93,1.28094218]
[1735166365436,0.91693163,701.02,699.93,1.28094218]
[1735166365834,0.91693163,701.01,699.93,1.28094218]
[1735166366141,0.91693163,701.0,699.92,0.28574694]
[1735166366440,0.91693163,700.99,699.92,0.28574694]
[1735166366836,0.91693163,700.98,699.92,0.28574694]
[1735166367236,0.91693163,700.97,699.92,0.28574694]
[1735166367637,0.28522939,701.19,699.92,0.28574694]
[1735166367638,0.91693163,700.96,699.92,0.28574694]
[1735166368039,0.91693163,700.95,699.92,0.28574694]
[1735166368440,0.91693163,700.94,699.92,0.28574694]
[1735166368739,0.91693163,700.93,699.92,0.28574694]
[1735166368939,0.28522939,701.19,699.92,0.28574694]
[1735166368940,0.91693163,700.92,699.92,0.28574694]
[1735166369439,0.91693163,700.91,699.92,0.28574694]
[1735166369635,0.91693163,700.9,699.92,0.28574694]
[1735166370032,0.91693163,700.89,699.92,0.28574694]
[1735166370439,0.91693163,700.88,699.92,0.28574694]
[1735166370734,0.91693163,700.87,699.92,0.28574694]
[1735166370940,0.28522939,701.19,699.92,0.28574694]
[1735166371239,0.91697009,701.18,699.92,0.28574694]
[1735166371639,0.91697009,701.17,699.92,0.28574694]
[1735166372235,0.91697009,701.16,699.92,0.28574694]
[1735166372737,0.91697009,701.15,699.92,0.28574694]
[1735166372939,0.91697009,701.14,699.92,0.28574694]
[1735166373240,0.91697009,701.13,699.92,0.28574694]
[1735166373640,0.91697009,701.12,699.92,0.28574694]
[1735166374034,0.91697009,701.11,699.92,0.28574694]
[1735166374235,0.91697009,701.1,699.92,0.28574694]
[1735166374635,0.91697009,701.09,699.92,0.28574694]
[1735166374841,0.91697009,701.08,699.92,0.28574694]
[1735166375036,1.06536725,702.03,699.92,0.28574694]
[1735166375235,0.2622119,702.02,699.92,0.28574694]
[1735166375436,0.91559772,702.01,699.92,0.28574694]
[1735166375639,0.2622119,702.0,699.92,0.28574694]
[1735166375836,0.28490434,701.99,699.92,0.28574694]
[1735166376040,1.17780962,701.98,699.92,0.28574694]
[1735166376237,1.17780962,701.97,699.92,0.28574694]
[1735166376441,0.2622119,701.96,699.92,0.28574694]
[1735166376641,1.17780962,701.96,699.92,0.28574694]
[1735166376837,0.2622119,701.95,699.92,0.28574694]
[1735166377143,1.17780962,701.95,699.92,0.28574694]
[1735166377342,1.17780962,701.94,699.92,0.28574694]
[1735166377543,0.28493275,701.92,699.92,0.28574694]
[1735166378043,1.1777948,701.91,699.92,0.28574694]
[1735166378245,0.28494493,701.89,699.92,0.28574694]
[1735166378438,0.26219708,701.88,699.92,0.28574694]
[1735166378642,0.28495711,701.86,699.92,0.28574694]
[1735166378842,0.26219708,701.85,699.92,0.28574694]
[1735166379046,0.28496929,701.83,699.92,0.28574694]
[1735166379239,0.91559772,701.82,699.92,0.28574694]
[1735166379443,0.28497741,701.81,699.92,0.28574694]
[1735166379639,1.20057513,701.81,699.92,0.28574694]
[1735166380045,0.28497741,701.81,699.92,0.28574694]
[1735166380244,0.9143497,701.8,699.92,0.28574694]
[1735166380444,0.9143497,701.79,699.92,0.28574694]
[1735166380740,0.9143497,701.78,699.92,0.28574694]
[1735166381146,0.9143497,701.77,699.92,0.28574694]
[1735166381346,1.19934742,701.76,699.92,0.28574694]
[1735166381547,0.28500178,701.75,699.92,0.28574694]
[1735166381746,1.19935148,701.75,699.92,0.28574694]
[1735166382244,0.9143497,701.74,699.92,0.28574694]
[1735166382447,1.1993596,701.73,699.92,0.28574694]
[1735166382747,1.19936366,701.72,699.92,0.28574694]
[1735166382948,0.28501802,701.71,699.92,0.28574694]
[1735166383149,0.9143497,701.7,699.92,0.28574694]
[1735166383448,1.19937585,701.69,699.92,0.28574694]
[1735166383648,0.28503021,701.68,699.92,0.28574694]
[1735166384142,0.9143497,701.67,699.92,0.28574694]
[1735166384346,0.28503833,701.66,699.92,0.28574694]
[1735166384542,0.9143497,701.65,699.92,0.28574694]
[1735166385148,0.28503833,701.66,699.92,0.28574694]
[1735166385149,0.9143497,701.64,699.92,0.28574694]
[1735166385345,1.19940022,701.63,699.92,0.28574694]
[1735166385549,0.9143497,701.62,699.92,0.28574694]
[1735166385945,0.9143497,701.61,699.92,0.28574694]
[1735166386351,0.9143497,701.6,699.92,0.28574694]
[1735166386744,0.91293011,701.59,699.92,0.28574694]
[1735166386947,0.91293011,701.58,699.92,0.28574694]
[1735166387352,0.91293011,701.57,699.92,0.28574694]
[1735166387550,0.91293011,701.56,699.92,0.28574694]
[1735166387946,0.91293011,701.55,699.92,0.28574694]
[1735166388348,0.91293011,701.54,699.92,0.28574694]
[1735166388652,0.91293011,701.53,699.92,0.28574694]
[1735166388853,0.91293011,701.52,699.92,0.28574694]
[1735166389053,0.91293011,701.51,699.92,0.28574694]
[1735166389552,0.91293011,701.5,699.92,0.28574694]
[1735166389751,0.91293011,701.49,699.92,0.28574694]
[1735166389952,0.91293011,701.48,699.92,0.28574694]
[1735166390348,0.91293011,701.47,699.92,0.28574694]
[1735166390553,0.91293011,701.46,699.92,0.28574694]
[1735166390953,0.91293011,701.45,699.92,0.28574694]
[1735166391255,0.91293011,701.44,699.92,0.28574694]
[1735166391451,0.91293011,701.43,699.92,1.63145807]
[1735166391757,0.91293011,701.42,699.93,1.34571113]
[1735166391955,0.91293011,701.41,699.95,0.28573469]
[1735166392357,0.91293011,701.4,699.95,0.28573469]
[1735166392852,0.28505052,701.63,699.95,0.28573469]
[1735166392853,0.91293011,701.39,699.95,0.28573469]
[1735166393157,0.91293011,701.38,699.95,0.28573469]
[1735166393555,0.91293011,701.37,699.95,0.28573469]
[1735166393755,0.91293011,701.36,699.95,0.28573469]
[1735166394053,0.91293011,701.35,699.95,1.63144582]
[1735166394357,0.91293011,701.35,699.96,1.34571113]
[1735166394553,0.91293011,701.34,699.98,0.28572244]
[1735166394753,0.91293011,701.33,699.98,0.28572244]
[1735166394956,0.91293011,701.32,699.98,0.28572244]
[1735166395352,0.91293011,701.31,699.98,0.28572244]
[1735166395757,0.91293011,701.3,699.98,0.28572244]
[1735166396153,0.91293011,701.29,699.98,0.28572244]
[1735166396353,0.91293011,701.28,699.98,0.28572244]
[1735166396557,0.28505052,701.63,699.98,0.28572244]
[1735166396959,0.91206929,701.62,699.98,0.28572244]
[1735166397258,0.28505052,701.63,699.98,0.28572244]
[1735166397259,0.91206929,701.61,699.98,0.28572244]
[1735166397655,0.91206929,701.6,699.98,0.28572244]
[1735166397862,0.91206929,701.59,699.98,0.28572244]
[1735166398162,0.91206929,701.58,699.98,0.28572244]
[1735166398662,0.91206929,701.57,699.98,0.28572244]
[1735166399056,0.91206929,701.56,699.98,0.28572244]
[1735166399459,0.91206929,701.55,699.98,0.28572244]
[1735166399959,1.19715638,701.54,699.98,0.28572244]
[1735166400157,0.28509115,701.53,699.98,0.28572244]
[1735166400361,0.91206929,701.52,699.98,0.28572244]
[1735166400759,0.91206929,701.51,699.98,0.28572244]
[1735166401157,1.19717263,701.5,699.98,0.28572244]
[1735166401468,0.91206929,701.49,699.98,0.28572244]
[1735166401764,0.91206929,701.48,699.98,0.28572244]
[1735166402263,0.91206929,701.47,699.98,0.28572244]
[1735166402663,0.91206929,701.46,699.98,0.28572244]
[1735166403066,0.91206929,701.45,699.98,0.28572244]
[1735166403368,0.91206929,701.44,699.98,0.28572244]
[1735166403766,0.91206929,701.43,699.98,0.28572244]
[1735166404166,0.91206929,701.42,699.98,0.28572244]
[1735166404367,0.91206929,701.41,699.98,0.28572244]
[1735166404860,0.28510334,701.5,699.98,0.28572244]
[1735166404861,0.91206929,701.4,699.98,0.28572244]
[1735166405266,0.91206929,701.39,699.98,0.28572244]
[1735166405666,0.91206929,701.38,699.98,0.28572244]
[1735166405868,0.91206929,701.37,699.98,0.28572244]
[1735166406270,0.91206929,701.36,699.98,0.28572244]
[1735166406768,0.91206929,701.35,699.98,0.28572244]
[1735166407067,0.91206929,701.34,699.98,0.28572244]
[1735166407262,0.91206929,701.33,699.98,0.28572244]
[1735166407668,0.91206929,701.32,699.98,0.28572244]
[1735166408067,0.91206929,701.31,699.98,0.28572244]
[1735166408369,0.91206929,701.3,699.98,0.28572244]
[1735166408671,0.91206929,701.29,699.98,0.28572244]
[1735166408969,0.91206929,701.28,699.98,0.28572244]
[1735166409170,0.91206929,701.27,699.98,0.28572244]
[1735166409565,0.91206929,701.26,699.98,0.28572244]
[1735166409964,0.91206929,701.25,699.98,0.28572244]
[1735166410368,0.91206929,701.24,699.98,0.28572244]
[1735166410768,0.91206929,701.23,699.98,0.28572244]
[1735166411171,0.91206929,701.22,699.98,0.28572244]
[1735166411574,0.91206929,701.21,699.98,0.28572244]
[1735166411974,0.91206929,701.2,699.98,0.28572244]
[1735166412368,0.91206929,701.19,699.98,0.28572244]
[1735166412771,0.91206929,701.18,699.98,0.28572244]
[1735166413068,0.28510334,701.5,699.98,0.28572244]
[1735166413469,0.91315396,701.49,699.98,0.28572244]
[1735166413872,0.91315396,701.48,699.98,0.28572244]
[1735166414370,0.91315396,701.47,699.98,0.28572244]
[1735166414571,0.91315396,701.46,699.98,0.28572244]
[1735166414971,0.91315396,701.45,699.98,0.28572244]
[1735166415271,0.91315396,701.44,699.98,0.28572244]
[1735166415673,0.91315396,701.43,699.98,0.28572244]